bitfinex-derivatives/quotes_ETHF0:USTF0_20251006
["timestamp","ask_amount","ask_price","bid_price","bid_amount"]
[1759714025636,0.3151,4532.1,4531.7,0.39708]
[1759714025836,0.3151,4532.1,4531.7,0.00270807]
[1759714026141,0.4437,4532.0,4531.7,0.00270807]
[1759714026539,0.3151,4531.8,4531.7,0.00270807]
[1759714026935,0.3151,4531.8,4531.7,0.00110807]
[1759714028343,0.3151,4531.8,4531.7,0.32650807]
[1759714028640,0.3151,4531.8,4531.7,0.00110807]
[1759714028839,0.3151,4531.8,4531.7,0.32650807]
[1759714029139,3.2078,4532.3,4531.7,0.32650807]
[1759714029140,3.2078,4532.3,4532.2,0.39703]
[1759714029441,0.3151,4532.3,4532.2,0.39703]
[1759714030031,0.3151,4532.2,4532.1,0.223]
[1759714031145,0.3151,4532.8,4532.5,0.39701]
[1759714031439,3.5229,4533.0,4532.9,0.39697]
[1759714031638,3.5229,4533.0,4532.9,0.94537]
[1759714031639,3.2078,4533.0,4532.9,0.94537]
[1759714032240,0.00265077,4533.2,4533.1,0.3254]
[1759714033845,0.00265077,4533.2,4533.1,1.10375703]
[1759714035041,0.00265077,4533.2,4533.1,0.3254]
[1759714035238,0.00265077,4533.2,4533.1,1.33118302]
[1759714035434,0.00265077,4533.2,4533.1,0.5474]
[1759714035946,0.00265077,4533.2,4533.1,1.33144857]
[1759714036246,0.00265077,4533.2,4533.1,1.33144707]
[1759714037844,0.00265077,4533.2,4533.1,1.76044707]
[1759714038036,0.00265077,4533.2,4533.1,1.53844707]
[1759714038236,0.00265077,4533.2,4533.1,1.76044707]
[1759714038441,3.97095077,4533.2,4533.1,0.222]
[1759714038641,0.39697,4532.9,4532.7,0.78404707]
[1759714038846,0.3314,4532.3,4532.2,0.78404707]
[1759714039044,3.5392,4532.3,4532.2,0.78404707]
[1759714039240,3.2078,4532.3,4532.0,0.91764707]
[1759714039453,3.2078,4532.3,4532.2,0.3083]
[1759714039950,0.72843,4532.2,4532.1,1.00604707]
[1759714040151,3.2078,4532.3,4532.2,0.3083]
[1759714040338,3.5392,4532.3,4532.2,1.09284514]
[1759714040539,0.72843,4532.2,4532.1,1.00654514]
[1759714040749,0.72843,4532.2,4532.1,0.222]
[1759714042452,0.39707,4531.8,4531.7,0.78565321]
[1759714042641,3.93627,4531.8,4531.7,1.09395321]
[1759714043248,3.2078,4531.8,4531.7,1.09395321]
[1759714043448,3.5392,4531.8,4531.7,0.78565321]
[1759714043649,3.5392,4531.8,4531.7,0.00110807]
[1759714045649,0.72847,4531.8,4531.7,0.00110807]
[1759714045854,0.72847,4531.8,4531.7,0.30940807]
[1759714046061,0.72847,4531.8,4531.7,0.00110807]
[1759714047847,1.15757,4531.8,4531.7,0.00110807]
[1759714049753,1.15757,4531.8,4531.3,0.78454514]
[1759714049754,0.7605,4531.4,4531.3,0.78454514]
[1759714050054,0.7605,4531.1,4531.0,0.78454514]
[1759714050356,0.4291,4530.8,4530.7,1.91033474]
[1759714050553,0.3971,4531.5,4531.3,0.4224]
[1759714050852,0.93428,4531.7,4531.6,0.5244]
[1759714051154,1.15758,4531.7,4531.6,0.7307]
[1759714052448,3.3412,4532.0,4531.3,1.00350768]
[1759714052449,0.2058,4531.4,4531.3,1.00350768]
[1759714052657,3.745,4531.4,4531.3,1.31180768]
[1759714053253,3.9683,4531.4,4531.3,1.00350768]
[1759714053455,8.9683,4531.4,4531.3,0.00279042]
[1759714053962,1.14085,4530.9,4530.8,0.78461726]
[1759714054259,4.34865,4530.9,4530.8,0.78461726]
[1759714054855,4.34865,4530.9,4530.8,0.78630404]
[1759714055255,3.91895,4530.9,4530.8,0.78630404]
[1759714055661,3.91895,4530.9,4530.8,0.00168678]
[1759714056058,8.91895,4530.9,4530.8,0.00168678]
[1759714056355,3.91895,4530.9,4530.8,0.00168678]
[1759714057754,4.57165,4530.9,4530.8,0.00168678]
[1759714059661,9.57165,4530.9,4530.8,0.00168678]
[1759714060053,4.57165,4530.9,4530.8,0.00168678]
[1759714061459,9.57165,4530.9,4530.8,0.00168678]
[1759714062360,1.14094,4529.8,4529.7,0.3189]
[1759714062566,1.14094,4529.8,4529.5,1.04521726]
[1759714062567,0.82696,4529.6,4529.5,0.78461726]
[1759714062867,0.7437,4529.5,4529.4,0.99111726]
[1759714063168,0.60746,4529.7,4529.6,0.7507]
[1759714063466,1.14334866,4529.7,4529.6,0.75265489]
[1759714065365,1.14334866,4529.7,4529.6,0.00195489]
[1759714065970,1.14334866,4529.7,4529.6,0.75265489]
[1759714065971,0.00238866,4529.7,4529.6,0.75265489]
[1759714067163,0.21258866,4529.7,4529.6,0.75265489]
[1759714067469,0.74608866,4529.7,4529.6,1.53727215]
[1759714068069,0.6587,4529.4,4528.7,0.3339]
[1759714068264,0.6587,4529.4,4528.5,0.1321]
[1759714068265,0.39735,4528.6,4528.5,0.466]
[1759714068464,0.62135,4528.6,4528.5,0.466]
[1759714068866,3.82915,4528.6,4528.5,0.466]
[1759714069064,3.82915,4528.6,4528.5,0.46759604]
[1759714069262,3.82915,4528.6,4528.0,0.466]
[1759714069466,6.33194591,4528.1,4528.0,0.06584177]
[1759714069767,3.4328,4528.1,4528.0,0.39974177]
[1759714069967,3.83019,4528.1,4528.0,0.39974177]
[1759714070166,3.60519,4528.1,4528.0,0.39974177]
[1759714070373,3.4328,4528.1,4528.0,0.40132806]
[1759714071271,3.2078,4528.1,4528.0,0.40132806]
[1759714072672,0.225,4528.6,4528.5,0.1321]
[1759714072871,3.2078,4528.8,4528.6,0.73125]
[1759714073175,3.2078,4528.8,4528.6,0.3339]
[1759714073477,3.60514,4528.8,4528.6,0.3339]
[1759714074070,3.2078,4528.8,4528.6,0.3339]
[1759714074376,0.39735,4528.7,4528.6,0.3339]
[1759714075275,0.39735,4528.7,4528.6,0.5471]
[1759714075971,0.39735,4528.7,4528.6,0.7609]
[1759714076170,3.60514,4528.8,4528.7,0.3339]
[1759714076474,3.60514,4528.8,4528.7,0.5471]
[1759714078969,0.39734,4528.8,4528.7,0.5471]
[1759714079178,0.39731,4529.1,4529.0,0.1321]
[1759714079474,0.39731,4529.1,4529.0,0.893]
[1759714079873,0.39731,4529.1,4529.0,0.6792]
[1759714080073,0.39728,4529.4,4529.1,0.3339]
[1759714080378,0.39728,4529.4,4529.3,0.2132]
[1759714080677,0.39728,4529.4,4529.0,0.1321]
[1759714080678,3.2078,4529.5,4529.4,0.7609]
[1759714080863,3.4318,4529.5,4529.4,0.7609]
[1759714081069,3.4318,4529.5,4529.4,0.3339]
[1759714082893,3.4318,4529.5,4529.4,0.7609]
[1759714083079,3.2078,4529.5,4529.4,0.7609]
[1759714084076,3.2078,4529.5,4529.4,0.3339]
[1759714084477,9.42499,4529.5,4529.1,0.3339]
[1759714084683,0.39734,4528.7,4528.6,0.3339]
[1759714084981,0.62134,4528.7,4528.5,0.1321]
[1759714085776,0.39734,4528.7,4528.6,0.3339]
[1759714085976,0.62134,4528.7,4528.6,0.3339]
[1759714089078,3.2078,4528.8,4528.6,0.94445]
[1759714089284,3.2078,4528.8,4528.7,1.15824]
[1759714089480,3.2078,4528.8,4528.7,0.7609]
[1759714090390,3.60513,4528.8,4528.7,0.3339]
[1759714090581,3.82913,4528.8,4528.7,0.3339]
[1759714091382,0.39735,4528.6,4528.5,0.466]
[1759714091583,0.62135,4528.6,4528.5,0.466]
[1759714091881,0.62135,4528.6,4528.5,0.6792]
[1759714093490,0.62135,4528.6,4528.5,0.893]
[1759714093687,0.62135,4528.6,4528.5,0.466]
[1759714094288,0.62135,4528.6,4528.5,0.6792]
[1759714094592,0.69570027,4528.6,4528.5,0.466]
[1759714094990,0.62135,4528.6,4528.5,0.466]
[1759714095181,1.09317529,4528.6,4528.5,0.893]
[1759714095787,1.09317529,4528.6,4528.5,0.6792]
[1759714096090,1.09317529,4528.6,4528.5,0.466]
[1759714096287,0.86917529,4528.6,4528.5,0.466]
[1759714096490,1.09317529,4528.6,4528.5,0.466]
[1759714097892,1.09317529,4528.6,4528.5,0.1321]
[1759714098895,0.39739,4528.1,4528.0,8.06e-06]
[1759714099192,3.82919,4528.1,4528.0,8.06e-06]
[1759714099693,3.82919,4528.1,4528.0,0.12550806]
[1759714099984,3.82919,4528.1,4528.0,0.33590806]
[1759714099985,3.6799971,4528.1,4528.0,0.33590806]
[1759714100185,3.9039971,4528.1,4528.0,0.55620806]
[1759714100385,3.4318,4528.1,4528.0,0.55620806]
[1759714100591,3.2078,4528.1,4528.0,0.55620806]
[1759714100791,3.4318,4528.1,4528.0,0.55620806]
[1759714100991,3.4318,4528.1,4528.0,0.88560806]
[1759714102090,3.2078,4528.1,4528.0,0.88560806]
[1759714106493,3.60519,4528.1,4528.0,0.88560806]
[1759714106799,3.2078,4528.1,4528.0,0.88560806]
[1759714107591,3.2078,4528.6,4528.5,1.28296]
[1759714108192,3.2078,4528.6,4528.5,0.8856]
[1759714109095,0.39734,4528.7,4528.5,0.8856]
[1759714109396,0.39734,4528.7,4528.6,0.7601]
[1759714111895,3.2078,4529.1,4528.5,0.1255]
[1759714111896,3.60511,4529.1,4529.0,0.5562]
[1759714112096,3.82911,4529.1,4529.0,0.8856]
[1759714112291,3.2078,4529.1,4529.0,0.8856]
[1759714112597,3.82906,4529.6,4529.5,0.5562]
[1759714112797,3.82906,4529.6,4529.5,0.8856]
[1759714113097,3.2078,4529.6,4529.5,0.8856]
[1759714115004,3.4318,4529.6,4529.0,0.3409]
[1759714115303,0.99318,4529.5,4529.1,0.2154]
[1759714115501,0.3973,4529.2,4529.1,0.2154]
[1759714115699,0.6213,4529.2,4529.0,0.1255]
[1759714115899,3.2078,4529.1,4529.0,0.562]
[1759714116099,3.2078,4529.1,4529.0,0.8908]
[1759714118095,3.2078,4529.1,4529.0,0.6697]
[1759714119108,3.2078,4529.1,4529.0,0.8908]
[1759714120407,3.2078,4529.1,4529.0,1.1148]
[1759714120610,0.22638866,4529.7,4529.0,1.1148]
[1759714120611,3.2078,4529.6,4529.5,1.28647]
[1759714120902,0.00238866,4529.7,4529.6,0.7653]
[1759714121095,0.21288866,4529.7,4529.6,7.17030282]
[1759714121301,0.21288866,4529.7,4529.6,5.9893]
[1759714121505,0.00238866,4529.7,4529.6,5.9893]
[1759714121705,0.00238866,4529.7,4529.6,7.17030282]
[1759714122305,0.00238866,4529.7,4529.6,0.9893]
[1759714122604,0.00238866,4529.7,4529.6,7.17030282]
[1759714122907,0.00238866,4529.7,4529.6,0.9893]
[1759714123109,0.00238866,4529.7,4529.6,2.16901878]
[1759714124307,0.00238866,4529.7,4529.6,0.9893]
[1759714124805,0.00238866,4529.7,4529.6,5.9893]
[1759714125004,4.0332,4531.4,4531.3,0.5442]
[1759714125312,0.7463,4531.0,4530.9,0.5528]
[1759714125503,0.4283,4531.0,4530.9,0.9893]
[1759714126009,0.43038442,4531.0,4530.9,0.99105777]
[1759714126413,0.00208442,4531.0,4530.9,0.99105777]
[1759714127412,0.21258442,4531.0,4530.9,0.99105777]
[1759714128110,0.00208442,4531.0,4530.9,0.99105777]
[1759714128898,0.00208442,4531.0,4530.9,1.35934847]
[1759714131118,3.2078,4532.4,4532.3,0.39703]
[1759714131414,3.2078,4532.4,4532.3,0.7462]
[1759714131615,3.4315,4532.4,4532.3,0.7462]
[1759714131914,0.2237,4532.4,4532.3,0.7462]
[1759714132107,0.00241294,4532.4,4532.3,4.57503]
[1759714133109,0.22611294,4532.4,4532.3,0.9702]
[1759714135113,0.4462,4532.1,4531.5,0.1296]
[1759714135418,0.7182,4531.5,4531.0,0.52673]
[1759714135612,0.9419,4531.5,4531.4,0.2094]
[1759714135915,1.1644,4531.5,4531.4,0.3258]
[1759714136110,0.4462,4531.5,4531.4,0.5352]
[1759714137215,0.2237,4531.1,4531.0,0.8878]
[1759714137509,0.2237,4531.2,4531.1,0.2094]
[1759714137710,0.3971,4531.5,4531.1,0.81752]
[1759714137911,0.6208,4531.5,4531.4,0.5352]
[1759714138611,0.8433,4531.5,4531.4,0.5352]
[1759714138807,3.2078,4531.9,4531.4,0.7462]
[1759714139014,0.39709,4531.6,4531.5,0.8758]
[1759714139316,0.84329,4531.6,4531.5,0.8758]
[1759714140514,0.7673,4531.0,4530.9,0.32755777]
[1759714141008,0.6208,4531.5,4531.4,0.2094]
[1759714141206,0.6208,4531.5,4531.4,0.7462]
[1759714141406,0.2237,4531.5,4531.4,0.7462]
[1759714141812,3.82855,4532.0,4531.9,0.4204]
[1759714142017,3.82855,4532.0,4531.9,0.7462]
[1759714142318,4.37215,4532.0,4531.9,0.3258]
[1759714142516,0.6196,4531.4,4531.3,0.2094]
[1759714142817,0.4462,4531.1,4531.0,0.55]
[1759714143015,0.4462,4531.1,4531.0,0.8758]
[1759714143316,0.2237,4531.1,4531.0,0.8758]
[1759714144707,0.7673,4531.1,4531.0,0.5352]
[1759714144916,0.7673,4531.1,4531.0,0.3258]
[1759714145117,1.16444,4531.0,4530.9,0.22475777]
[1759714145818,1.16444,4531.0,4530.9,0.55055777]
[1759714146214,9.37224,4531.0,4530.9,0.00175777]
[1759714146911,9.48124,4531.0,4530.9,0.00175777]
[1759714147818,6.27344,4531.0,4530.9,0.00175777]
[1759714148020,9.48124,4531.0,4530.9,0.00175777]
[1759714148615,0.84342,4530.1,4530.0,0.3258]
[1759714148923,0.2237,4530.1,4530.0,0.8758]
[1759714149117,0.4462,4530.1,4530.0,0.8758]
[1759714149619,0.4462,4530.1,4530.0,0.8784569]
[1759714151018,0.2237,4530.1,4530.0,0.8784569]
[1759714151618,0.4462,4530.1,4530.0,0.8784569]
[1759714151918,0.7673,4530.1,4530.0,0.5378569]
[1759714152118,0.7673,4530.1,4530.0,0.0026569]
[1759714152921,0.9903,4530.1,4530.0,0.3284569]
[1759714153219,0.4462,4530.1,4530.0,0.8784569]
[1759714153525,0.4467,4530.1,4530.0,0.8784569]
[1759714153715,0.2237,4530.1,4530.0,0.8784569]
[1759714154318,3.60501,4530.3,4530.1,0.3258]
[1759714154519,3.2078,4530.3,4530.2,0.7462]
[1759714155225,3.2078,4530.3,4530.2,1.14341]
[1759714155427,4.05111,4531.3,4531.2,0.5352]
[1759714155820,4.37221,4531.3,4531.2,0.5352]
[1759714156623,4.37221,4531.3,4531.2,0.3258]
[1759714157426,4.27411,4531.3,4531.2,0.5352]
[1759714157618,4.59521,4531.3,4531.2,0.5352]
[1759714158128,0.83563,4531.1,4531.0,0.8871]
[1759714158722,1.15953,4531.1,4531.0,0.8871]
[1759714159520,0.39717,4530.6,4530.5,0.8871]
[1759714159725,0.83567,4530.6,4530.5,0.8871]
[1759714160819,0.83567,4530.6,4530.2,0.223]
[1759714160820,0.3972,4530.3,4530.2,0.223]
[1759714161022,1.1596,4530.3,4530.2,0.223]
[1759714161225,1.1596,4530.3,4530.2,0.209]
[1759714161625,1.1596,4530.3,4530.2,0.5339]
[1759714161823,0.8357,4530.3,4530.2,0.5339]
[1759714162331,1.15962,4530.1,4530.0,0.4510569]
[1759714162525,1.15962,4530.1,4530.0,0.3275569]
[1759714163031,1.15962,4530.1,4530.0,0.5365569]
[1759714163731,1.15962,4530.1,4530.0,0.0026569]
[1759714164127,1.15965,4529.7,4529.6,3.2078]
[1759714164328,1.15969,4529.3,4529.2,0.3249]
[1759714165033,0.4385,4529.3,4529.2,0.75916815]
[1759714165229,0.2236,4529.3,4529.2,0.75916815]
[1759714165441,0.83575,4529.8,4529.7,0.7575]
[1759714165631,1.05875,4529.8,4529.7,0.7575]
[1759714165827,0.83575,4529.8,4529.7,0.7575]
[1759714166028,1.05875,4529.8,4529.7,0.7575]
[1759714166230,1.38265,4529.8,4529.7,0.7575]
[1759714166426,0.9854,4529.8,4529.2,0.00166815]
[1759714166634,1.15969,4529.3,4529.2,0.00166815]
[1759714166828,1.15969,4529.3,4529.2,0.53556815]
[1759714167035,0.83579,4529.3,4529.2,0.53556815]
[1759714168037,1.15969,4529.3,4529.2,0.53556815]
[1759714169040,1.15969,4529.3,4529.2,0.00166815]
[1759714170036,1.15969,4529.3,4529.2,0.53556815]
[1759714170333,0.83579,4529.3,4529.2,0.75916815]
[1759714170533,1.15969,4529.3,4529.2,0.32656815]
[1759714171036,1.15969,4529.3,4529.2,0.00166815]
[1759714171637,0.83579,4529.3,4529.2,0.75916815]
[1759714172635,1.15969,4529.3,4529.2,0.53556815]
[1759714172831,1.15969,4529.3,4529.2,0.32656815]
[1759714173033,1.15969,4529.3,4529.2,0.00166815]
[1759714173737,0.4466,4529.6,4529.5,0.9073]
[1759714175234,0.39726,4529.7,4529.6,0.7756]
[1759714175630,0.62116,4529.7,4529.6,0.7756]
[1759714177338,0.39726,4529.7,4529.6,0.7756]
[1759714177638,0.62116,4529.7,4529.6,0.7756]
[1759714177838,0.39726,4529.7,4529.6,0.7756]
[1759714178037,0.62116,4529.7,4529.6,0.7756]
[1759714178536,0.84373,4531.1,4531.0,0.9073]
[1759714178835,1.15193,4531.1,4531.0,0.6821]
[1759714179042,2.15452795,4531.1,4531.0,0.6821]
[1759714180041,1.06673,4531.1,4531.0,0.9073]
[1759714180239,0.6696,4531.1,4531.0,0.9073]
[1759714181036,1.06673,4531.1,4531.0,0.9073]
[1759714184638,1.37493,4531.1,4531.0,0.9073]
[1759714185937,1.37493,4531.1,4531.0,0.337]
[1759714186133,1.37493,4531.1,4530.5,0.1317]
[1759714186134,0.84377,4530.6,4530.5,0.6821]
[1759714186437,1.15197,4530.6,4530.5,0.5504]
[1759714187635,0.39717,4530.7,4530.6,0.7449]
[1759714187839,0.84337,4530.7,4530.6,0.7449]
[1759714189742,0.61827,4530.7,4530.6,0.7449]
[1759714189941,0.39715,4530.9,4530.7,0.3244]
[1759714190142,0.39715,4530.9,4530.8,0.7449]
[1759714190643,0.39709,4531.6,4531.4,0.7449]
[1759714190847,0.84119,4531.6,4531.5,0.8694]
[1759714191143,0.2211,4531.6,4531.5,0.8694]
[1759714192335,0.39709,4531.7,4531.6,0.3244]
[1759714192645,3.5373,4532.0,4531.7,0.72147]
[1759714192646,3.2078,4532.0,4531.7,0.72147]
[1759714192845,3.2078,4532.0,4531.9,0.4205]
[1759714193144,3.2078,4532.0,4531.9,0.7449]
[1759714195545,0.00241294,4532.4,4531.9,0.7449]
[1759714195741,0.44861294,4532.4,4532.3,0.7449]
[1759714195942,0.77811294,4532.4,4532.3,0.7449]
[1759714196544,0.44861294,4532.4,4532.3,0.7449]
[1759714200250,0.77811294,4532.4,4532.3,0.5297]
[1759714200446,0.84329,4531.6,4531.5,0.6542]
[1759714200644,0.84329,4531.6,4531.5,0.8694]
[1759714200846,0.00241294,4532.4,4532.3,0.7449]
[1759714201554,0.61801,4533.6,4533.5,0.8694]
[1759714201744,3.2078,4533.7,4533.6,0.7449]
[1759714202047,0.1113,4534.5,4533.6,0.7449]
[1759714202048,3.5373,4534.9,4534.0,0.1245]
[1759714202244,3.5373,4534.9,4534.8,0.7449]
[1759714202245,3.2078,4534.9,4534.8,0.7449]
[1759714202445,3.2078,4535.4,4535.0,0.1245]
[1759714202745,0.3295,4535.3,4535.0,0.1245]
[1759714202954,0.7757,4534.9,4534.8,0.00161971]
[1759714203148,3.2078,4534.9,4534.8,0.42211971]
[1759714203339,0.00189366,4535.4,4535.3,0.7449]
[1759714203743,0.224,4536.4,4535.3,1.04126]
[1759714203744,3.2078,4536.4,4535.3,1.04126]
[1759714203953,3.2078,4536.4,4536.3,0.7449]
[1759714204551,3.2078,4536.4,4536.3,5.7449]
[1759714204748,3.21043508,4536.4,4536.3,5.7449]
[1759714204950,0.7759,4536.2,4536.1,0.3244]
[1759714205252,0.7759,4536.2,4535.5,0.1245]
[1759714205253,0.4462,4535.6,4535.5,0.1245]
[1759714205455,3.654,4535.6,4535.5,0.6542]
[1759714205651,3.2078,4535.6,4535.5,0.8694]
[1759714205845,3.9837,4535.6,4535.5,0.3244]
[1759714206049,0.39678,4535.1,4534.9,0.3244]
[1759714206252,0.39675,4535.4,4535.0,0.8694]
[1759714206452,0.39677,4535.2,4535.1,0.7449]
[1759714206646,3.4289,4535.6,4535.5,0.6542]
[1759714206860,3.9837,4535.6,4535.5,0.3244]
[1759714207055,0.39678,4535.2,4535.0,0.1245]
[1759714207256,0.61788,4535.2,4535.1,0.5297]
[1759714207959,0.843,4534.9,4534.8,0.53131971]
[1759714208654,0.39673,4535.8,4535.5,0.8694]
[1759714208858,0.1095,4536.5,4535.6,0.5297]
[1759714208859,4.38043,4535.7,4535.6,0.5297]
[1759714209161,4.05073,4535.7,4535.6,0.5297]
[1759714209356,4.05073,4535.7,4535.6,0.7449]
[1759714209557,5.71647476,4536.8,4536.2,0.3244]
[1759714209759,5.71647476,4536.8,4536.7,0.3244]
[1759714210554,5.71910854,4536.8,4536.7,5.3244]
[1759714210756,4.20062854,4536.8,4536.7,8.5322]
[1759714211056,2.14962854,4536.8,4536.7,8.5322]
[1759714211253,0.3297,4536.8,4536.7,8.2078]
[1759714211963,0.1321,4537.5,4537.4,0.39658]
[1759714212161,0.1321,4537.5,4537.4,41.34899754]
[1759714212458,0.02200988,4538.0,4537.9,0.39654]
[1759714212659,0.02200988,4538.0,4537.9,3.60434]
[1759714212855,9.88e-06,4538.0,4537.9,3.60434]
[1759714213058,9.88e-06,4538.0,4537.9,8.82834]
[1759714213262,9.88e-06,4538.0,4537.9,3.93659098]
[1759714213459,9.88e-06,4538.0,4537.9,38.56559098]
[1759714213767,0.00208071,4538.0,4537.9,38.56559098]
[1759714213966,0.33178071,4538.0,4537.9,38.56559098]
[1759714214166,7.1e-07,4538.0,4537.9,43.56559098]
[1759714214357,0.13210071,4538.0,4537.9,43.56559098]
[1759714214867,7.1e-07,4538.0,4537.9,3.93659098]
[1759714215068,7.1e-07,4538.0,4537.9,3.82834]
[1759714215362,0.00220046,4538.0,4537.9,3.60434]
[1759714215663,0.00220046,4538.0,4537.9,8.82834]
[1759714216557,0.00220046,4538.0,4537.9,43.22334]
[1759714216759,0.33190046,4538.0,4537.9,43.22334]
[1759714217157,0.33190046,4538.0,4537.9,3.60434]
[1759714217364,0.33190046,4538.0,4537.9,3.82834]
[1759714218566,0.33190046,4538.0,4537.9,3.60434]
[1759714218964,0.33190046,4538.0,4537.9,3.82834]
[1759714219163,4.6e-07,4538.0,4537.9,8.82834]
[1759714220159,0.00207755,4538.0,4537.9,8.82834]
[1759714221265,0.31187755,4538.0,4537.9,8.82834]
[1759714222467,7.55e-06,4538.0,4537.9,8.82834]
[1759714223568,7.68e-06,4538.0,4537.9,8.82834]
[1759714223767,7.68e-06,4538.0,4537.9,43.20934]
[1759714224169,7.68e-06,4538.0,4537.9,8.60434]
[1759714224364,7.68e-06,4538.0,4537.9,43.20834]
[1759714224564,0.30980004,4538.0,4537.9,8.60434]
[1759714224768,0.13210004,4538.0,4537.9,8.60434]
[1759714225270,0.1321,4538.5,4538.4,0.39649]
[1759714225467,0.1321,4538.5,4538.4,3.82729]
[1759714225661,0.1321,4539.5,4538.4,3.82729]
[1759714225662,0.1321,4539.5,4539.4,0.3964]
[1759714225869,0.1321,4539.5,4538.4,8.43251156]
[1759714225870,0.00263137,4539.5,4539.3,2.37849]
[1759714226065,0.00263137,4539.5,4539.4,34.602]
[1759714226272,0.13473137,4539.5,4539.2,3.2078]
[1759714226465,0.13473137,4539.5,4539.2,3.60422]
[1759714226764,0.39641,4539.4,4539.3,0.224]
[1759714226967,0.13473137,4539.5,4539.3,0.224]
[1759714227166,0.3098,4539.4,4539.3,0.224]
[1759714227867,0.3098,4539.4,4539.3,0.62041]
[1759714228066,0.3098,4539.4,4539.3,0.39641]
[1759714228268,0.3098,4539.4,4539.3,0.224]
[1759714228673,0.3098,4539.4,4539.2,3.60422]
[1759714228674,0.13473137,4539.5,4539.2,3.2078]
[1759714228873,0.3098,4539.4,4539.3,0.224]
[1759714230473,0.65113137,4539.5,4539.4,0.3964]
[1759714230970,0.3098,4539.4,4539.3,0.39641]
[1759714231176,0.5164,4539.4,4539.3,0.62041]
[1759714231472,0.5164,4539.4,4539.3,0.39641]
[1759714231673,0.7304,4539.3,4539.2,3.2078]
[1759714231874,0.7304,4539.3,4539.2,3.4318]
[1759714232071,0.7304,4539.3,4539.2,3.2078]
[1759714232268,0.7304,4539.3,4539.2,3.4318]
[1759714232881,0.1321,4539.0,4538.8,0.39645]
[1759714233073,0.3098,4538.9,4538.8,0.39645]
[1759714233469,0.3098,4538.9,4538.7,3.2078]
[1759714233470,0.318,4538.8,4538.7,3.2078]
[1759714234170,0.318,4538.8,4538.7,3.4318]
[1759714234476,0.318,4538.8,4538.7,3.2078]
[1759714234664,5.71446,4538.8,4538.7,3.4318]
[1759714234870,0.85018,4538.5,4537.6,3.60436]
[1759714235070,0.85018,4538.5,4537.7,0.39655]
[1759714235376,5.85018,4538.5,4538.4,0.22571156]
[1759714235574,0.318,4537.7,4537.6,3.2078]
[1759714235874,0.4537,4537.0,4536.9,3.2078]
[1759714236075,0.1357,4536.5,4536.2,37.5778]
[1759714236269,0.318,4536.4,4536.3,0.224]
[1759714236671,0.318,4536.4,4536.3,0.22618037]
[1759714237466,5.318,4536.4,4536.3,0.00218037]
[1759714237669,5.318,4536.4,4536.3,0.22618037]
[1759714237870,0.1357,4535.5,4535.2,3.2078]
[1759714238071,0.1357,4535.5,4535.3,0.62076]
[1759714238072,0.318,4535.4,4535.3,0.62076]
[1759714238764,0.318,4535.4,4535.3,0.39935347]
[1759714238969,0.3201765,4535.4,4535.3,0.62335347]
[1759714240078,0.3201765,4535.4,4535.3,0.39935347]
[1759714240573,0.3201765,4535.4,4535.3,0.62335347]
[1759714241582,0.3201765,4535.4,4535.3,0.22659347]
[1759714242078,0.3201765,4535.4,4535.3,0.00259347]
[1759714242277,0.3201765,4535.4,4535.3,0.22659347]
[1759714242475,0.3201765,4535.4,4535.3,0.00259347]
[1759714242676,0.3201765,4535.4,4535.3,0.22659347]
[1759714243176,0.3201765,4535.4,4535.3,0.00259347]
[1759714243381,0.3201765,4535.4,4535.3,0.22659347]
[1759714243672,0.3201765,4535.4,4535.3,0.00259347]
[1759714243873,0.3201765,4535.4,4535.3,0.22659347]
[1759714244275,0.3201765,4535.4,4535.3,0.00259347]
[1759714244776,0.318,4535.3,4535.2,2.7482]
[1759714245277,0.318,4535.3,4535.2,3.14497]
[1759714245571,0.0021765,4535.4,4535.2,3.46187]
[1759714245776,0.0021765,4535.4,4535.2,3.14681637]
[1759714245977,0.3201765,4535.4,4535.3,0.3169]
[1759714246176,0.318,4535.3,4535.2,3.23971637]
[1759714246377,0.318,4535.3,4535.2,3.46371637]
[1759714246872,0.318,4535.3,4535.2,2.75004637]
[1759714247271,0.318,4535.3,4535.2,2.52604637]
[1759714247472,0.318,4535.3,4535.2,2.75004637]
[1759714247677,0.5326,4535.3,4535.2,3.16934637]
[1759714247873,0.5326,4535.3,4535.2,3.48944637]
[1759714248577,0.5326,4535.3,4535.2,2.94534637]
[1759714248775,0.5326,4535.3,4535.2,3.16934637]
[1759714249278,0.5326,4535.3,4535.2,3.48944637]
[1759714249478,0.5326,4535.3,4535.2,3.16934637]
[1759714249878,0.5326,4535.3,4535.2,3.48944637]
[1759714250076,0.7512,4535.3,4535.2,2.52604637]
[1759714250380,0.7512,4535.3,4535.2,2.75004637]
[1759714250569,0.7512,4535.3,4535.2,2.52604637]
[1759714250771,0.7512,4535.3,4535.2,3.17364637]
[1759714250969,0.7512,4535.3,4535.2,3.49374637]
[1759714251175,0.0021765,4535.4,4535.3,1.14046]
[1759714252581,0.0021765,4535.4,4535.3,5.7437]
[1759714253175,3.2078,4537.1,4536.4,0.4236]
[1759714253377,0.6802,4537.0,4536.9,0.2103]
[1759714253680,0.8988,4537.0,4536.9,0.4353]
[1759714253883,0.8988,4537.0,4536.6,0.39664]
[1759714254182,0.7631,4536.8,4536.7,0.83193]
[1759714256084,0.7631,4536.8,4536.7,0.4353]
[1759714256976,0.3391,4536.7,4536.3,3.2078]
[1759714257285,0.899,4536.5,4536.4,0.62067]
[1759714257887,0.424,4535.9,4535.8,0.60701]
[1759714258081,0.7631,4535.9,4535.8,0.83101]
[1759714258383,0.7631,4535.9,4535.8,0.6476]
[1759714259187,0.424,4535.3,4535.2,3.20964637]
[1759714259379,0.7631,4535.3,4535.2,3.64394637]
[1759714259684,0.5445,4536.1,4536.0,0.7437]
[1759714259880,0.7631,4536.1,4536.0,0.6476]